bitfinex-derivatives/quotes_SOLF0:USTF0_20250404
["timestamp","ask_amount","ask_price","bid_price","bid_amount"]
[1743774503509,0.06174973,115.35,115.32,42.56]
[1743774503813,0.06174973,115.35,115.32,42.61457849]
[1743774504221,3.7647,115.42,115.35,51.21708847]
[1743774504416,62.95993725,115.47,115.36,42.66]
[1743774504612,51.21708847,115.45,115.36,42.66]
[1743774504906,3.8818,115.46,115.36,42.66]
[1743774504907,51.21708847,115.43,115.36,42.66]
[1743774505407,0.0647132,115.41,115.38,0.06211229]
[1743774505827,8.6684,115.4,115.38,0.06211229]
[1743774506422,0.0647132,115.41,115.38,0.06211229]
[1743774507505,8.6683,115.4,115.38,0.06211229]
[1743774507701,51.28180167,115.41,115.38,0.06211229]
[1743774508107,8.6686,115.39,115.38,0.06211229]
[1743774509307,8.7324132,115.41,115.38,0.06211229]
[1743774509607,0.0647132,115.41,115.38,42.84211229]
[1743774510994,0.0647132,115.41,115.38,0.06211229]
[1743774511388,8.6686,115.39,115.38,0.06211229]
[1743774512093,51.21708847,115.39,115.33,42.78]
[1743774512290,3.9184,115.38,115.33,42.78]
[1743774513085,8.672,115.35,115.33,42.78]
[1743774513288,8.672,115.35,115.34,0.06036135]
[1743774514888,0.06127128,115.37,115.34,0.06036135]
[1743774515093,0.06127128,115.37,115.35,42.8]
[1743774515596,0.06127128,115.37,115.34,0.06036135]
[1743774516991,8.73177128,115.37,115.34,0.06036135]
[1743774517189,0.06127128,115.37,115.34,0.06036135]
[1743774517888,0.06127128,115.37,115.34,8.73226135]
[1743774518090,0.06127128,115.37,115.34,0.06036135]
[1743774518690,0.06127128,115.37,115.34,8.73246135]
[1743774518901,0.06127128,115.37,115.34,0.06036135]
[1743774519798,8.6715,115.36,115.34,0.06036135]
[1743774519992,0.06127128,115.37,115.34,0.06036135]
[1743774520901,8.6716,115.35,115.34,0.06036135]
[1743774521100,51.21708847,115.35,115.29,43.02]
[1743774521295,7.9549,115.34,115.29,43.02]
[1743774521493,8.6755,115.3,115.25,8.6786]
[1743774521703,51.21708847,115.33,115.26,43.02]
[1743774521997,8.6767,115.29,115.24,42.98]
[1743774522194,51.27227842,115.31,115.28,0.05772205]
[1743774522404,4.0333,115.3,115.24,42.98]
[1743774522593,8.6762,115.29,115.28,0.06119396]
[1743774522894,4.0333,115.3,115.28,0.06119396]
[1743774523201,12.77492462,115.3,115.28,0.06119396]
[1743774523499,4.09912462,115.3,115.28,0.06119396]
[1743774524002,12.77492462,115.3,115.28,0.06119396]
[1743774524301,4.09912462,115.3,115.28,0.06119396]
[1743774524494,8.6762,115.29,115.28,0.06119396]
[1743774525599,8.6784,115.26,115.25,42.78]
[1743774525800,4.0333,115.3,115.25,42.78]
[1743774526003,4.0333,115.3,115.22,42.64]
[1743774526198,8.6775,115.28,115.24,8.6794]
[1743774526391,4.0333,115.3,115.22,42.64]
[1743774526696,0.0638488,115.27,115.25,0.06513033]
[1743774527191,0.0638488,115.27,115.25,8.74373033]
[1743774527393,0.0638488,115.27,115.26,42.62]
[1743774527594,363.25708847,115.35,115.26,42.62]
[1743774527893,11.7259,115.34,115.26,42.62]
[1743774528093,51.21708847,115.31,115.21,42.64]
[1743774528396,8.678,115.27,115.23,8.6801]
[1743774528595,8.678,115.27,115.21,42.64]
[1743774528792,0.05540099,115.26,115.24,0.0631843]
[1743774529402,0.05540099,115.26,115.24,8.7425843]
[1743774529599,0.05540099,115.26,115.24,0.0631843]
[1743774529903,0.05540099,115.26,115.25,8.6792]
[1743774531000,0.05540099,115.26,115.24,8.7426843]
[1743774531209,0.05540099,115.26,115.24,0.0631843]
[1743774531507,0.05540099,115.26,115.25,8.6792]
[1743774532305,0.05540099,115.26,115.24,8.7426843]
[1743774532503,0.05540099,115.26,115.24,0.0631843]
[1743774532698,0.05540099,115.26,115.24,8.43e-05]
[1743774532899,55.29438946,115.26,115.24,8.43e-05]
[1743774533104,8.6792,115.25,115.24,8.43e-05]
[1743774536609,12.75610099,115.26,115.24,8.43e-05]
[1743774536801,4.07730099,115.26,115.24,8.43e-05]
[1743774537003,0.05540099,115.26,115.24,8.43e-05]
[1743774538209,8.73420099,115.26,115.24,8.43e-05]
[1743774538397,0.05540099,115.26,115.24,8.43e-05]
[1743774539304,0.05540099,115.26,115.25,8.6792]
[1743774539898,0.05540099,115.26,115.24,8.6795843]
[1743774540105,0.05540099,115.26,115.24,8.43e-05]
[1743774540610,0.05540099,115.26,115.25,8.6792]
[1743774541512,3.9365,115.3,115.28,8.6765]
[1743774541707,3.9365,115.3,115.25,43.22]
[1743774542108,3.9365,115.3,115.27,8.6772]
[1743774542311,35.14371645,115.3,115.25,43.22]
[1743774542508,3.9365,115.3,115.25,43.22]
[1743774542709,0.06215369,115.29,115.26,0.05573402]
[1743774543306,0.06215369,115.29,115.28,8.6769]
[1743774543517,16.221,115.36,115.26,31.26295047]
[1743774543518,7.5495,115.36,115.26,31.26295047]
[1743774543810,7.5495,115.36,115.28,31.20721645]
[1743774544008,7.5495,115.36,115.29,43.12]
[1743774544510,0.06214096,115.34,115.31,0.0580006]
[1743774544712,31.26935741,115.34,115.31,0.0580006]
[1743774544913,8.6735,115.33,115.31,0.0580006]
[1743774545212,31.26935741,115.34,115.25,0.8458]
[1743774545409,43.08,115.35,115.31,8.674]
[1743774545611,31.20721645,115.33,115.26,1.59373878]
[1743774545911,3.9715,115.32,115.24,43.08]
[1743774546112,3.9715,115.32,115.23,43.7231]
[1743774546313,0.05905855,115.29,115.27,0.06005091]
[1743774546914,0.05905855,115.29,115.21,700.34641645]
[1743774546915,31.266275,115.29,115.18,0.702]
[1743774547115,31.20721645,115.27,115.19,44.59458897]
[1743774547317,31.20721645,115.27,115.19,43.0]
[1743774547515,3.6882,115.26,115.23,8.6799]
[1743774547712,3.7384,115.3,115.19,43.0]
[1743774547914,31.20721645,115.29,115.19,74.20721645]
[1743774548115,0.0640916,115.26,115.25,8.6788]
[1743774548312,0.0640916,115.26,115.2,1.73611111]
[1743774548512,0.0640916,115.26,115.24,0.06311683]
[1743774548712,0.0640916,115.26,115.24,8.74271683]
[1743774549013,0.0640916,115.26,115.24,0.06311683]
[1743774549317,0.0640916,115.26,115.2,1.73611111]
[1743774549508,50.74927221,115.25,115.2,1.73611111]
[1743774549705,8.6811,115.23,115.2,1.73611111]
[1743774550215,3.6882,115.24,115.2,1.73611111]
[1743774550416,0.0657759,115.23,115.2,1.784179]
[1743774550716,50.81504811,115.23,115.2,1.784179]
[1743774551016,102.81604811,115.23,115.2,1.784179]
[1743774551413,94.13504811,115.23,115.15,43.32]
[1743774551613,94.06927221,115.23,115.17,8.6846]
[1743774552210,3.7593,115.22,115.16,8.6856]
[1743774552420,50.74927221,115.21,115.16,8.6856]
[1743774552617,0.06413821,115.2,115.12,43.18]
[1743774552814,50.74927221,115.17,115.1,6.5926]
[1743774553024,50.74927221,115.17,115.1,49.7526]
[1743774553313,0.05457895,115.15,115.1,43.16]
[1743774554019,0.05457895,115.15,115.12,8.6885]
[1743774554215,0.05457895,115.15,115.06,316.4284]
[1743774554417,50.74927221,115.13,115.07,1.59615931]
[1743774554721,50.74927221,115.11,115.07,8.6923]
[1743774554925,50.74927221,115.11,115.03,43.02]
[1743774555121,50.74927221,115.11,115.07,8.6923]
[1743774555429,0.06215579,115.1,115.03,93.76927221]
[1743774555623,0.06215579,115.1,115.08,8.6913]
[1743774555821,7.7326,115.12,115.03,93.76927221]
[1743774556022,0.0638803,115.1,115.03,93.76927221]
[1743774556214,7.7326,115.12,115.08,8.6916]
[1743774556511,0.05661021,115.08,115.03,93.76927221]
[1743774556719,7.7326,115.12,115.03,93.76927221]
[1743774556917,0.06104533,115.07,115.03,93.76927221]
[1743774557118,0.06104533,115.07,115.06,8.6935]
[1743774558530,4.533e-05,115.07,115.06,17.3935]
[1743774559220,4.533e-05,115.07,115.06,18.2365]
[1743774559727,4.533e-05,115.07,115.06,20.7854]
[1743774559923,4.533e-05,115.07,115.06,8.6935]
[1743774564530,11.4909,115.16,115.06,8.7]
[1743774564735,11.4909,115.16,115.08,50.74927221]
[1743774564929,20.1769,115.16,115.09,43.12]
[1743774565231,11.4909,115.16,115.09,43.12]
[1743774565621,11.4909,115.16,115.1,1.59590274]
[1743774565821,0.06506481,115.14,115.11,0.05484059]
[1743774566227,0.06506481,115.14,115.13,8.6882]
[1743774566725,0.06506481,115.14,115.13,51.6282]
[1743774566932,11.4301,115.21,115.13,42.94]
[1743774567234,62.17937221,115.21,115.13,42.94]
[1743774567436,62.17937221,115.21,115.14,8.6874]
[1743774567734,50.74927221,115.19,115.13,42.94]
[1743774567931,50.80483313,115.19,115.16,0.0583857]
[1743774568531,59.48893313,115.19,115.16,0.0583857]
[1743774568726,0.05556092,115.19,115.16,0.0583857]
[1743774569137,8.73966092,115.19,115.16,0.0583857]
[1743774569335,0.05556092,115.19,115.16,0.0583857]
[1743774571435,8.6845,115.18,115.16,0.0583857]
[1743774571628,0.05556092,115.19,115.16,0.0583857]
[1743774572335,31.27901183,115.18,115.1,42.68]
[1743774572632,31.27901183,115.16,115.1,42.68]
[1743774572836,31.27901183,115.16,115.06,31.27901183]
[1743774572837,31.27901183,115.14,115.06,42.64]
[1743774573033,8.6903,115.11,115.06,51.3331]
[1743774573231,11.6098,115.15,115.06,51.3331]
[1743774573435,0.05678613,115.1,115.07,0.06437859]
[1743774573635,0.05678613,115.1,115.07,8.6924]
[1743774573933,0.05678613,115.1,115.07,8.7543682]
[1743774574140,0.05678613,115.1,115.07,0.0619682]
[1743774575741,8.692,115.08,115.07,0.0619682]
[1743774576535,8.6916,115.09,115.07,0.0619682]
[1743774576833,0.05678613,115.1,115.07,0.0619682]
[1743774577032,8.692,115.08,115.07,0.0619682]
[1743774577237,0.05678613,115.1,115.07,0.0619682]
[1743774577738,8.692,115.08,115.07,0.0619682]
[1743774578338,50.88,115.08,114.99,42.2]
[1743774578642,50.90668141,115.07,114.99,42.2]
[1743774578838,50.90668141,115.07,115.0,8.6977]
[1743774578839,8.6952,115.04,115.0,8.6977]
[1743774579043,50.90668141,115.07,114.99,42.2]
[1743774579244,8.6959,115.03,114.99,42.2]
[1743774579653,0.065334,115.04,114.96,3.8078]
[1743774579853,8.6962,115.03,114.99,8.6984]
[1743774580151,0.06433936,115.01,114.99,8.6984]
[1743774580351,50.90668141,115.07,114.99,8.6984]
[1743774580548,0.0661808,115.01,114.99,8.6984]
[1743774580750,8.6981,115.0,114.93,366.08538141]
[1743774580943,8.6981,115.0,114.94,42.02]
[1743774581154,0.05958878,114.98,114.92,46.6843]
[1743774581357,0.05958878,114.98,114.94,8.7022]
[1743774581358,8.75928878,114.98,114.94,8.7022]
[1743774581548,0.05958878,114.98,114.92,46.6843]
[1743774581853,8.75918878,114.98,114.94,8.7018]
[1743774582249,0.05958878,114.98,114.92,3.8078]
[1743774582955,8.75978878,114.98,114.94,8.7021]
[1743774583158,0.05958878,114.98,114.92,42.0]
[1743774583453,0.05958878,114.98,114.91,8.7045]
[1743774583655,0.05958878,114.98,114.9,42.0]
[1743774583856,50.90668141,114.97,114.9,42.0]
[1743774584055,0.05654097,114.95,114.9,42.0]
[1743774584558,8.75874097,114.95,114.9,42.0]
[1743774584751,0.05654097,114.95,114.9,42.0]
[1743774585459,0.05654097,114.95,114.91,50.90668141]
[1743774585755,8.7031,114.94,114.9,50.7053]
[1743774586357,0.05654097,114.95,114.9,42.0]
[1743774586757,8.7032,114.94,114.9,50.7051]
[1743774587358,0.05654097,114.95,114.9,42.0]
[1743774587658,0.05654097,114.95,114.88,41.8]
[1743774587956,92.70668141,114.96,114.86,0.8408]
[1743774588157,0.05530661,114.93,114.86,0.8408]
[1743774588361,0.05530661,114.93,114.85,41.78]
[1743774588555,8.7061,114.9,114.86,10.30734461]
[1743774588755,8.7061,114.9,114.85,41.78]
[1743774588950,8.7061,114.9,114.84,356.0]
[1743774589155,0.05597951,114.89,114.85,41.74]
[1743774589654,0.05597951,114.89,114.88,8.7071]
[1743774589858,50.90668141,114.98,114.88,1.59886027]
[1743774590060,54.81648141,114.98,114.92,8.7037]
[1743774590362,50.90668141,114.96,114.89,41.78]
[1743774590559,3.7031,114.95,114.89,41.78]
[1743774590955,3.9098,114.98,114.89,92.68668141]
[1743774591162,0.05849133,114.93,114.91,8.76166841]
[1743774591463,50.90668141,114.97,114.89,41.78]
[1743774591656,8.7041,114.92,114.91,0.06365241]
[1743774591858,0.0584823,114.93,114.91,0.06365241]
[1743774592464,8.7621823,114.93,114.91,0.06365241]
[1743774593263,8.7041,114.92,114.91,0.06365241]
[1743774593964,0.0584823,114.93,114.91,0.06365241]
[1743774594365,8.7621823,114.93,114.91,0.06365241]
[1743774594665,0.0584823,114.93,114.91,0.06365241]
[1743774594864,8.7041,114.92,114.91,0.06365241]
[1743774595366,0.0584823,114.93,114.91,0.06365241]
[1743774596364,8.7621823,114.93,114.91,0.06365241]
[1743774596567,0.0584823,114.93,114.91,0.06365241]
[1743774597166,8.7041,114.92,114.91,0.06365241]
[1743774598564,8.7062,114.9,114.87,8.7075]
[1743774598876,31.42127074,114.92,114.85,41.38]
[1743774599170,8.7082,114.87,114.8,31.42127074]
[1743774599364,31.42127074,114.9,114.83,8.7109]
[1743774599669,8.7084,114.87,114.83,8.7109]
[1743774600062,0.06259182,114.88,114.84,8.7099]
[1743774600266,31.42127074,114.9,114.83,41.32]
[1743774600461,0.06121962,114.87,114.83,41.32]
[1743774602073,0.06121962,114.87,114.8,31.42127074]
[1743774602074,0.06121962,114.87,114.81,8.712]
[1743774602270,31.42127074,114.86,114.76,32.32557074]
[1743774602475,31.42127074,114.86,114.77,42.80033128]
[1743774602677,31.47614176,114.82,114.72,41.18]
[1743774602875,8.7144,114.79,114.73,1.60075155]
[1743774603172,0.05728452,114.77,114.72,7.0645]
[1743774603371,0.05728452,114.77,114.73,1.6009099]
[1743774603579,0.05728452,114.77,114.72,48.2045]
[1743774603764,0.05728452,114.77,114.73,33.02242737]
[1743774603965,0.05728452,114.77,114.73,31.42127074]
[1743774604172,4.0456,114.83,114.74,1.60094747]
[1743774604369,8.7121,114.82,114.75,41.1]
[1743774604672,41.12,114.82,114.75,49.8166]
[1743774604872,8.7141,114.79,114.75,41.1]
[1743774605176,31.42127074,114.81,114.75,49.8165]
[1743774605374,0.06598825,114.78,114.76,0.05728452]
[1743774606273,0.06598825,114.78,114.76,8.77348452]
[1743774606673,0.06598825,114.78,114.76,0.05728452]
[1743774608370,7.7884,114.83,114.79,8.7137]
[1743774608875,7.7884,114.83,114.8,8.7131]
[1743774609079,31.42127074,114.89,114.81,40.9]
[1743774609278,31.42127074,114.89,114.82,40.94]
[1743774609279,1.74094707,114.88,114.82,40.94]
[1743774609776,0.05600348,114.86,114.84,0.05493521]
[1743774610976,0.05600348,114.86,114.85,8.7094]
[1743774611485,1.74094707,114.88,114.87,8.7079]
[1743774611878,12.7382,114.93,114.84,40.82]
[1743774612182,4.0342,114.93,114.84,40.82]
[1743774612383,12.7382,114.93,114.84,40.82]
[1743774612581,0.06599431,114.9,114.87,0.05811299]
[1743774612780,0.06599431,114.9,114.88,40.74]
[1743774612976,3.9897,114.95,114.93,8.703]
[1743774613179,3.6786,114.96,114.91,40.74]
[1743774613475,40.74,114.99,114.91,40.76]
[1743774613677,1.7398869,114.95,114.91,40.76]
[1743774614087,1.7398869,114.95,114.93,8.7026]
[1743774614274,0.05628328,114.94,114.93,8.7026]
[1743774614679,11.6744,115.01,114.92,0.06068469]
[1743774614880,7.6847,115.01,114.93,31.42127074]
[1743774615079,72.20127074,115.04,114.94,40.8]
[1743774615280,31.42127074,115.02,114.94,40.8]
[1743774615685,8.7001,114.98,114.94,40.8]
[1743774615883,8.7001,114.98,114.97,0.05708773]
[1743774616184,0.06217444,114.99,114.97,0.05708773]
[1743774617185,0.06217444,114.99,114.97,40.81708773]
[1743774618284,0.06217444,114.99,114.97,0.05708773]
[1743774618682,8.6995,114.98,114.97,0.05708773]
[1743774618888,0.06217444,114.99,114.89,669.44]
[1743774618889,51.06277216,114.99,114.91,40.66]
[1743774619086,0.06217444,114.99,114.91,40.66]
[1743774619388,51.00059772,115.05,114.94,51.00059772]
[1743774619584,3.8483,115.04,114.95,41.36]
[1743774619786,8.6977,115.01,114.96,8.7006]
[1743774619990,8.76331276,115.01,114.98,0.06281784]
[1743774620189,0.06561276,115.01,114.98,0.06281784]
[1743774620986,0.06561276,115.01,114.99,41.34]
[1743774621590,0.06561276,115.01,114.99,50.0383]
[1743774621786,0.06561276,115.01,114.99,41.34]
[1743774622796,0.06561276,115.01,114.98,0.06281784]
[1743774623191,51.00059772,114.99,114.88,41.32]
[1743774623387,51.00059772,114.97,114.89,1.5985563]
[1743774623695,51.00059772,114.97,114.87,51.00059772]
[1743774623895,51.00059772,114.97,114.88,41.3]
[1743774624196,8.7022,114.95,114.9,8.705]
[1743774624393,0.0635612,114.94,114.91,0.05518991]
[1743774624988,0.0635612,114.94,114.93,8.7033]
[1743774625191,41.24,115.02,114.93,51.00059772]
[1743774625390,41.28,115.03,114.93,51.00059772]
[1743774625689,8.6984,115.0,114.93,51.00059772]
[1743774625885,1.73882802,115.02,114.93,51.00059772]
[1743774626088,1.73882802,115.02,114.95,51.00059772]
[1743774626296,0.06191374,114.99,114.96,41.28198173]
[1743774626594,1.73882802,115.02,114.97,51.00059772]
[1743774626790,99.85269772,115.09,114.99,51.00059772]
[1743774626987,58.63269772,115.09,115.0,41.22]
[1743774627185,99.83269772,115.09,115.0,49.9176]
[1743774627384,99.83269772,115.09,115.0,41.22]
[1743774627587,0.05830769,115.06,115.03,0.05620662]
[1743774628195,8.75240769,115.06,115.03,0.05620662]
[1743774628391,0.05830769,115.06,115.03,0.05620662]
[1743774628598,144.94338799,115.16,115.05,51.00059772]
[1743774628794,8.6909,115.1,115.05,51.00059772]
[1743774628998,3.8006,115.15,115.05,51.00059772]
[1743774629594,51.00059772,115.14,115.05,51.00059772]
[1743774629799,0.05740773,115.11,115.09,0.06247164]
[1743774630098,0.05740773,115.11,115.04,41.18]
[1743774630295,92.14059772,115.12,115.04,41.18]
[1743774630497,7.4986,115.16,115.07,51.00059772]
[1743774630697,7.4986,115.16,115.08,41.16]
[1743774631091,7.4986,115.16,115.08,49.8514]
[1743774631295,0.05607896,115.13,115.11,0.06338644]
[1743774631596,0.05607896,115.13,115.11,8.75248644]
[1743774631798,3.8006,115.18,115.12,41.52]
[1743774632103,8.6848,115.18,115.14,8.6868]
[1743774632397,3.7791,115.21,115.13,51.00059772]
[1743774633000,0.05889442,115.18,115.16,0.05934818]
[1743774633401,8.6856,115.17,115.16,0.05934818]
[1743774634200,0.05889442,115.18,115.12,41.52]
[1743774634502,51.00059772,115.2,115.12,41.52]
[1743774634997,8.6864,115.16,115.12,50.2088]
[1743774635201,45.1591,115.21,115.12,41.52]
[1743774635399,0.05635355,115.15,115.13,0.06096932]
[1743774635600,45.1591,115.21,115.12,41.52]
[1743774635792,0.05859133,115.15,115.13,0.06273227]
[1743774635990,51.00059772,115.2,115.13,8.688]
[1743774636194,0.06211349,115.15,115.13,8.74332159]
[1743774636393,45.1591,115.21,115.13,8.688]
[1743774636595,0.05950781,115.15,115.13,8.75113966]
[1743774636797,45.1591,115.21,115.14,8.6874]
[1743774636993,0.06052235,115.15,115.13,0.05668823]
[1743774637197,45.1591,115.21,115.12,41.52]
[1743774637403,0.0595335,115.15,115.12,41.52]
[1743774637604,44.9591,115.21,115.15,0.05675994]
[1743774637901,8.7452704,115.19,115.14,8.6874]
[1743774638104,0.0610704,115.19,115.17,0.05908435]
[1743774638506,8.6846,115.18,115.17,0.05908435]
[1743774638696,0.0610704,115.19,115.17,0.05908435]
[1743774639601,8.6844,115.18,115.17,0.05908435]
[1743774640203,8.6868,115.15,115.13,41.08]
[1743774640399,41.08,115.21,115.13,41.08]
[1743774640705,55.01869772,115.2,115.13,41.08]
[1743774641204,7.5106,115.19,115.13,41.08]
[1743774641400,8.6871,115.15,115.13,41.08]
[1743774641708,7.5106,115.19,115.13,41.08]
[1743774641907,0.06194255,115.15,115.13,41.13557229]
[1743774642304,8.74904255,115.15,115.13,41.13557229]
[1743774642606,8.74904255,115.15,115.13,0.05557229]
[1743774642802,8.6875,115.14,115.13,0.05557229]
[1743774643200,0.06194255,115.15,115.13,0.05557229]
[1743774643598,0.06194255,115.15,115.14,8.6875]
[1743774644707,48.9157,115.23,115.14,51.00059772]
[1743774644906,52.8147,115.23,115.14,51.00059772]
[1743774645105,52.8147,115.23,115.16,8.6856]
[1743774645507,52.8147,115.23,115.14,51.00059772]
[1743774645807,0.06061272,115.2,115.17,0.05849777]
[1743774646712,8.6844,115.18,115.17,0.05849777]
[1743774647005,0.06061272,115.2,115.17,0.05849777]
[1743774647211,0.06061272,115.2,115.19,8.6837]
[1743774648009,3.9468,115.23,115.21,8.6821]
[1743774648307,8.6795,115.25,115.21,40.8]
[1743774648508,8.6795,115.25,115.22,8.6813]
[1743774648910,8.6786,115.26,115.21,40.8]
[1743774649111,58.36889772,115.28,115.21,40.8]
[1743774649302,0.06346628,115.25,115.22,0.055343]
[1743774650114,8.6807,115.23,115.22,0.055343]
[1743774650505,0.06346628,115.25,115.22,40.875343]
[1743774650709,0.06346628,115.25,115.24,8.6799]
[1743774651216,0.06346628,115.25,115.22,91.87594072]
[1743774651511,0.06346628,115.25,115.22,40.875343]
[1743774652111,8.6807,115.23,115.22,40.875343]
[1743774652413,8.6807,115.23,115.22,0.055343]
[1743774652613,0.06346628,115.25,115.22,0.055343]
[1743774652810,8.6803,115.24,115.22,0.055343]
[1743774653014,0.06346628,115.25,115.22,0.055343]
[1743774653613,0.06346628,115.25,115.23,40.78]
[1743774654007,0.06346628,115.25,115.24,8.6799]
[1743774654211,7.7937,115.31,115.24,51.00059772]
[1743774654409,7.7937,115.31,115.23,40.78]
[1743774655017,8.6799,115.24,115.23,40.78]
[1743774655213,40.78,115.27,115.2,40.78]
[1743774655520,40.78,115.27,115.2,49.4625]
[1743774655717,40.78,115.27,115.2,40.78]
[1743774655911,51.00059772,115.3,115.2,40.78]
[1743774656117,48.5937,115.31,115.21,51.00059772]
[1743774656517,0.06378027,115.27,115.25,0.0593208]
[1743774656709,8.6784,115.26,115.25,0.0593208]
[1743774657316,0.06378027,115.27,115.25,0.0593208]
[1743774657913,0.06378027,115.27,115.26,8.6784]
[1743774658414,8.74198027,115.27,115.25,0.0593208]
[1743774658716,0.06378027,115.27,115.25,0.0593208]
[1743774659316,8.6784,115.26,115.25,0.0593208]
[1743774660218,0.06378027,115.27,115.25,0.0593208]
[1743774660814,8.6784,115.26,115.25,0.0593208]
[1743774661016,40.70378027,115.27,115.2,40.62]
[1743774661217,40.64,115.27,115.2,40.62]
[1743774661914,8.6769,115.28,115.21,52.59509091]
[1743774662114,48.4737,115.31,115.22,1.6527472]
[1743774662321,0.05623191,115.26,115.23,91.68059772]
[1743774662520,0.05623191,115.26,115.23,40.74261685]
[1743774663116,0.05623191,115.26,115.25,8.6792]
[1743774663920,7.7937,115.31,115.24,31.20304028]
[1743774664220,8.6769,115.28,115.24,31.20304028]
[1743774664423,7.7937,115.31,115.24,8.6795]
[1743774664617,79.75674028,115.31,115.22,40.76]
[1743774664816,48.5537,115.31,115.22,71.96304028]
[1743774665019,0.06577587,115.28,115.25,0.05696184]
[1743774665220,0.06577587,115.28,115.26,40.82]
[1743774665514,0.06577587,115.28,115.25,0.05696184]
[1743774665719,8.6784,115.26,115.25,0.05696184]
[1743774666719,40.84,115.27,115.21,40.86]
[1743774667117,8.6783,115.27,115.21,40.86]
[1743774667314,40.88,115.29,115.21,40.86]
[1743774667918,0.06214289,115.26,115.24,0.06506365]
[1743774668318,8.6798,115.25,115.24,0.06506365]
[1743774668513,0.06214289,115.26,115.19,8.6833]
[1743774668712,8.682,115.22,115.19,8.6833]
[1743774668918,3.9549,115.24,115.19,8.6833]
[1743774669316,8.6833,115.2,115.16,40.84]
[1743774669521,40.86,115.23,115.14,31.20304028]
[1743774669721,0.0567858,115.19,115.17,0.0657997]
[1743774670324,8.6844,115.18,115.17,0.0657997]
[1743774670513,8.6844,115.18,115.12,387.20304028]
[1743774670514,0.0567858,115.19,115.11,2.1874]
[1743774670718,72.02304028,115.2,115.11,40.82]
[1743774671020,8.6865,115.16,115.11,40.82]
[1743774671421,72.02304028,115.2,115.11,40.82]
[1743774671714,0.05830302,115.17,115.14,0.0607248]
[1743774672028,0.05830302,115.17,115.14,8.7481248]
[1743774672317,0.05830302,115.17,115.14,0.0607248]
[1743774672921,8.6867,115.15,115.14,0.0607248]
[1743774673120,0.05830302,115.17,115.14,0.0607248]
[1743774673423,8.6867,115.15,115.14,0.0607248]
[1743774673826,40.73830302,115.17,115.08,406.8242493]
[1743774674020,91.56255232,115.17,115.09,40.68]
[1743774674225,8.6886,115.13,115.1,8.6901]
[1743774674522,40.68,115.17,115.09,40.68]
[1743774674720,8.6871,115.15,115.12,8.6884]
[1743774674928,3.8227,115.18,115.12,40.66]
[1743774675219,1.869e-05,115.15,115.14,50.8242493]
[1743774675424,8.6835,115.2,115.14,50.8242493]
[1743774675731,3.6844,115.22,115.15,40.7]
[1743774675926,3.6878,115.19,115.15,40.7]
[1743774676424,0.06170046,115.18,115.16,50.88734282]
[1743774676624,0.06170046,115.18,115.16,0.06309352]
[1743774677824,0.06170046,115.18,115.16,50.88734282]
[1743774678027,0.06170046,115.18,115.17,8.6852]
[1743774679323,4.6e-07,115.18,115.17,8.6852]
[1743774679524,7.5642,115.25,115.17,8.68]
[1743774679720,7.5642,115.25,115.18,91.7442493]
[1743774679926,312.44,115.29,115.2,50.8242493]
[1743774680227,11.2795,115.28,115.18,91.7442493]
[1743774680428,50.8242493,115.27,115.18,40.92]
[1743774680730,8.6807,115.23,115.22,0.05650991]
[1743774680921,0.06415824,115.24,115.22,0.05650991]
[1743774681325,8.6807,115.23,115.22,0.05650991]
[1743774681525,0.06415824,115.24,115.18,40.92]
[1743774681826,8.6788,115.26,115.19,50.8242493]
[1743774682023,11.2795,115.28,115.19,50.8242493]
[1743774682219,11.2795,115.28,115.18,40.92]
[1743774682629,0.06278768,115.24,115.22,1.922e-05]
[1743774682826,8.6826,115.21,115.14,41.24]
[1743774683026,92.1242493,115.25,115.17,8.6848]
[1743774683322,92.1242493,115.25,115.15,50.8242493]
[1743774683825,0.06151635,115.21,115.19,0.06355428]
[1743774684322,0.06151635,115.21,115.19,50.88780358]
[1743774684624,11.2795,115.28,115.23,8.6802]
[1743774684829,11.2795,115.28,115.23,50.1202]
[1743774685031,11.2795,115.28,115.23,41.44]
[1743774685227,11.2795,115.28,115.23,50.1202]